bitfinex/quotes_ETHUSD_20240817
["timestamp","ask_amount","ask_price","bid_price","bid_amount"]
[1723924894883,0.1058414,2622.1,2621.8,2.8606]
[1723924895089,0.1058414,2622.1,2621.9,2.86049]
[1723924895294,0.1058414,2622.1,2622.0,2.86041]
[1723924895794,0.1058414,2622.1,2622.0,5.72082]
[1723924895979,0.1058414,2622.1,2622.0,8.03342]
[1723924899388,0.1058414,2622.1,2622.0,5.17301]
[1723924899593,0.1058414,2622.1,2622.0,5.68725807]
[1723924907279,0.1058414,2622.1,2622.0,2.86041]
[1723924911385,0.1058414,2622.1,2622.0,8.18932]
[1723924916828,0.1058414,2622.1,2622.0,5.72082]
[1723924918620,0.1058414,2622.1,2622.0,2.86041]
[1723924920642,0.1058414,2622.1,2621.9,2.8605]
[1723924920808,0.1058414,2622.1,2621.9,2.86047]
[1723924921799,0.1058414,2622.1,2622.0,8.16962]
[1723924927394,0.1058414,2622.1,2622.0,2.86041]
[1723924927548,0.1058414,2622.1,2621.9,2.86051]
[1723924928663,0.1058414,2622.1,2621.8,5.35875]
[1723924928664,0.1058414,2622.1,2622.0,2.86041]
[1723924931860,0.1058414,2622.1,2621.9,3.396385]
[1723924932217,2.4077414,2622.1,2621.6,5.86076]
[1723924932374,2.4077414,2622.1,2621.8,2.86061]
[1723924932556,0.1058414,2622.1,2621.8,5.72118]
[1723924932761,0.1058414,2622.1,2621.9,2.8605]
[1723924933358,0.1058414,2622.1,2621.8,5.72111]
[1723924934290,0.1058414,2622.1,2621.8,2.86054]
[1723924935920,0.1058414,2622.1,2621.8,5.72111]
[1723924936966,0.1058414,2622.1,2621.9,2.86051]
[1723924938707,0.1058414,2622.1,2621.8,2.86061]
[1723924941539,0.1058414,2622.1,2621.8,2.86058]
[1723924941731,0.1058414,2622.1,2621.8,5.72115]
[1723924943223,0.1058414,2622.1,2621.9,2.86051]
[1723924944735,0.1058414,2622.1,2622.0,2.86041]
[1723924946152,0.1058414,2622.1,2622.0,8.19172]
[1723924948764,0.1058414,2622.1,2622.0,5.72082]
[1723924949135,0.1058414,2622.1,2622.0,9.50072]
[1723924949334,0.1058414,2622.1,2622.0,12.36113]
[1723924949584,0.1058414,2622.1,2622.0,15.91113]
[1723924950167,0.1058414,2622.1,2622.0,17.2378517]
[1723924950477,0.1058414,2622.1,2622.0,19.22797005]
[1723924950679,0.1058414,2622.1,2622.0,20.0243587]
[1723924951545,0.1058414,2622.1,2622.0,19.22797005]
[1723924952776,0.1058414,2622.1,2622.0,17.2378517]
[1723924953100,0.1058414,2622.1,2622.0,13.05072]
[1723924960810,0.1058414,2622.1,2622.0,5.86041]
[1723924962242,0.1058414,2622.1,2621.9,2.8605]
[1723924962420,0.1058414,2622.1,2621.9,2.86044]
[1723924962421,2.4875414,2622.1,2621.9,2.86044]
[1723924962714,2.4875414,2622.1,2621.7,5.86065]
[1723924962715,2.73629554,2622.1,2621.7,5.86065]
[1723924963196,2.86046,2622.0,2621.7,3.0]
[1723924963412,2.86053,2621.9,2621.6,3.0]
[1723924963725,2.3456,2621.8,2621.3,2.86109]
[1723924963867,2.3456,2621.8,2621.4,2.86104]
[1723924964865,2.3456,2621.8,2621.5,2.86094]
[1723924965065,2.3456,2621.8,2621.5,5.72183]
[1723924965261,2.3456,2621.8,2621.5,2.86089]
[1723924969071,2.3456,2621.8,2621.3,2.86117]
[1723924969072,5.20623,2621.8,2621.3,2.86117]
[1723924969382,0.520612,2621.7,2621.3,2.86117]
[1723924969572,0.520612,2621.7,2621.3,5.72234]
[1723924969773,5.20623,2621.8,2621.3,5.72234]
[1723924969774,2.3456,2621.8,2621.4,2.86101]
[1723924970768,2.3456,2622.0,2621.5,5.72181]
[1723924970985,2.3456,2622.0,2621.6,2.86084]
[1723924972325,2.86052,2621.9,2621.4,2.86099]
[1723924972620,3.83351355,2621.9,2621.4,2.86099]
[1723924972920,3.83351355,2621.9,2621.4,5.722]
[1723924975168,8.00311355,2621.9,2621.4,2.86099]
[1723924975414,5.82422136,2621.8,2621.2,2.86118]
[1723924975616,5.82422136,2621.8,2621.3,5.86112]
[1723924976327,2.96351136,2621.8,2621.4,2.86105]
[1723924976880,2.96351136,2621.8,2621.4,5.72206]
[1723924978137,2.96351136,2621.8,2621.4,5.72202]
[1723924978434,2.3456,2621.8,2621.4,5.72202]
[1723924978923,2.3456,2621.8,2621.4,5.722]
[1723924980680,2.3456,2621.8,2621.4,2.86099]
[1723924981422,2.3456,2621.8,2621.4,5.722]
[1723924981631,2.3456,2621.8,2621.5,2.86095]
[1723924981929,2.4664,2622.0,2621.6,2.86084]
[1723924982077,2.4664,2622.0,2621.7,2.86064]
[1723924982277,2.4664,2622.0,2621.8,2.86061]
[1723924983229,0.1058414,2622.1,2621.6,2.4261]
[1723924983523,0.1058414,2622.1,2622.0,2.86041]
[1723924986026,0.1058414,2622.1,2621.9,2.86051]
[1723924986232,0.1058414,2622.1,2621.9,2.86043]
[1723924992883,0.1058414,2622.1,2622.0,2.86041]
[1723924996347,2.5688414,2622.1,2621.8,2.86061]
[1723924997340,0.1058414,2622.1,2621.9,2.86048]
[1723925000743,0.1058414,2622.1,2622.0,2.86041]
[1723925001391,0.1058414,2622.1,2622.0,10.055609]
[1723925001593,0.1058414,2622.1,2622.0,13.055609]
[1723925004413,0.1058414,2622.1,2622.0,11.746609]
[1723925004617,0.1058414,2622.1,2622.0,11.17452]
[1723925013466,0.1058414,2622.1,2622.0,8.72082]
[1723925014304,0.1058414,2622.1,2622.0,5.86041]
[1723925015518,0.1058414,2622.1,2622.0,8.72082]
[1723925015717,0.1058414,2622.1,2622.0,5.86041]
[1723925016847,0.1058414,2622.1,2621.8,2.86062]
[1723925017029,2.3840414,2622.1,2621.7,5.72133]
[1723925017214,2.3840414,2622.1,2621.8,2.86062]
[1723925018220,5.76877954,2622.1,2621.5,2.86092]
[1723925018549,1.309,2622.0,2621.5,2.8609]
[1723925018719,2.3840414,2622.1,2621.6,2.86079]
[1723925018949,0.23840414,2622.0,2621.6,2.86079]
[1723925029417,0.1058414,2622.1,2621.7,5.23852]
[1723925030672,2.9661414,2622.1,2621.7,5.23852]
[1723925030858,3.92311954,2622.1,2621.7,5.23852]
[1723925032594,3.92311954,2622.1,2621.7,2.3778]
[1723925032886,2.4345,2622.0,2621.6,2.86084]
[1723925033091,3.92311954,2622.1,2621.6,2.86084]
[1723925034087,0.1058414,2622.1,2621.8,2.3778]
[1723925036391,0.1058414,2622.1,2621.7,2.86072]
[1723925036694,1.01944587,2622.1,2621.7,2.86072]
[1723925039304,1.01944587,2622.1,2621.6,2.3778]
[1723925039305,3.87975587,2622.1,2621.6,2.86084]
[1723925039496,6.74014587,2622.1,2621.6,2.86084]
[1723925039693,1.05316459,2622.0,2621.6,2.86084]
[1723925039899,1.05316459,2622.0,2621.6,5.72163]
[1723925040191,1.05316459,2622.0,2621.6,2.86079]
[1723925041105,1.05316459,2622.0,2621.6,5.72158]
[1723925043703,2.9661514,2622.1,2621.6,5.72158]
[1723925043900,2.9661514,2622.1,2621.7,2.86073]
[1723925046036,2.9661514,2622.1,2621.4,5.29407]
[1723925046204,2.2895,2621.9,2621.5,2.86088]
[1723925046401,2.86063,2621.8,2621.4,2.86097]
[1723925047708,2.86063,2621.8,2621.3,2.86116]
[1723925047895,3.82225051,2621.8,2621.4,5.86106]
[1723925048099,2.2895,2621.9,2621.5,2.86095]
[1723925048407,3.15710514,2622.0,2621.5,5.23185]
[1723925048599,1.29424465,2621.9,2621.5,5.23185]
[1723925050560,4.15476465,2621.9,2621.5,5.23185]
[1723925050764,4.15476465,2621.9,2621.4,2.86105]
[1723925051066,4.15476465,2621.9,2621.1,1.309]
[1723925051067,2.2895,2621.7,2621.1,2.86138]
[1723925051205,4.16987,2621.6,2621.1,2.86138]
[1723925051767,4.16987,2621.6,2621.2,2.86127]
[1723925052075,8.24904673,2621.6,2621.0,5.23229]
[1723925052235,2.86101,2621.5,2621.0,2.86139]
[1723925052436,3.11441267,2621.4,2621.0,5.72284]
[1723925052638,1.309,2621.2,2620.3,4.85316162]
[1723925052966,1.309,2621.2,2620.3,2.86224]
[1723925052967,1.309,2620.8,2620.3,2.86224]
[1723925053132,1.309,2620.8,2620.3,2.86219]
[1723925053540,4.17074,2620.8,2620.3,2.86219]
[1723925053723,1.309,2620.8,2620.3,5.72438]
[1723925053925,1.309,2620.8,2620.4,2.86214]
[1723925056924,1.309,2621.0,2620.5,2.86204]
[1723925057329,0.96813,2620.9,2620.5,2.86204]
[1723925057551,0.96813,2620.9,2620.5,2.86199]
[1723925058629,0.96813,2620.9,2620.5,2.86198]
[1723925058832,4.17051,2621.0,2620.5,2.86198]
[1723925061876,2.86151,2621.0,2620.5,2.86198]
[1723925062071,1.309,2621.0,2620.6,5.30477]
[1723925065311,2.86139,2621.1,2620.6,5.30477]
[1723925065496,19.95,2621.2,2620.8,2.86164]
[1723925065670,19.95,2621.2,2620.8,5.7233]
[1723925065876,19.95,2621.2,2620.8,2.86164]
[1723925068970,1.309,2621.1,2620.8,2.86164]
[1723925073699,1.309,2620.9,2620.6,2.4429]
[1723925073871,1.726055,2620.9,2620.6,2.4429]
[1723925074076,4.17055,2621.0,2620.6,2.4429]
[1723925074899,1.309,2621.0,2620.6,2.4429]
[1723925076011,4.1705,2621.0,2620.6,2.4429]
[1723925078588,1.309,2621.0,2620.6,5.30482]
[1723925080920,4.17051,2621.0,2620.6,5.30482]
[1723925081196,4.873706,2621.0,2620.6,2.4429]
[1723925085324,1.309,2620.8,2620.6,2.4429]
[1723925088943,1.309,2620.8,2620.4,2.4126]
[1723925089099,1.309,2620.6,2620.2,8.27489]
[1723925089306,1.309,2620.6,2620.2,5.27489]
[1723925089508,4.17096,2620.6,2620.2,5.27489]
[1723925092853,1.309,2620.6,2620.2,5.27489]
[1723925096246,12.25152726,2620.9,2620.4,2.86214]
[1723925096247,1.309,2620.8,2620.4,2.86214]
[1723925097216,2.97737233,2620.8,2620.4,2.86214]
[1723925100459,4.17094,2620.6,2620.1,2.4473]
[1723925100607,4.17094,2620.6,2620.1,5.30976]
[1723925100608,1.309,2620.4,2620.1,5.30976]
[1723925100805,6.53340786,2620.8,2620.3,2.86221]
[1723925101047,1.309,2620.8,2620.4,2.4473]
[1723925101369,0.84435053,2620.7,2620.4,2.4473]
[1723925101957,1.309,2620.8,2620.5,2.86204]
[1723925102191,1.309,2620.8,2620.4,5.30945]
[1723925102891,1.309,2620.8,2620.4,2.4473]
[1723925103376,1.309,2620.8,2620.4,5.3094]
[1723925104945,1.309,2620.8,2620.4,2.4473]
[1723925105142,3.0218419,2620.8,2620.4,2.4473]
[1723925105870,3.0218419,2620.8,2620.4,5.30944]
[1723925106050,1.309,2620.8,2620.4,5.30944]
[1723925109685,2.00282018,2621.2,2620.7,2.86176]
[1723925109889,1.309,2621.3,2620.9,2.86158]
[1723925110195,1.309,2621.3,2620.8,5.21064]
[1723925110399,4.1702,2621.3,2620.8,8.07228]
[1723925110546,1.92629402,2621.3,2620.9,2.86157]
[1723925113360,1.309,2621.3,2620.9,2.86157]
[1723925113565,1.309,2621.3,2621.0,2.8615]
[1723925114693,1.309,2621.3,2620.9,2.8616]
[1723925115392,1.309,2621.3,2621.0,2.86148]
[1723925116353,1.309,2621.3,2621.0,2.86145]
[1723925119068,1.309,2621.1,2620.6,5.30698]
[1723925119270,4.1704,2621.1,2620.6,5.30698]
[1723925119491,4.1704,2621.1,2620.6,8.16886]
[1723925119492,1.309,2621.1,2620.6,8.16886]
[1723925121191,1.309,2621.1,2620.7,2.86182]
[1723925121699,4.17039,2621.1,2620.6,5.30703]
[1723925121898,4.8417546,2621.1,2620.6,5.30703]
[1723925122306,4.8417546,2621.1,2620.6,2.86193]
[1723925122910,1.9803646,2621.1,2620.7,2.86182]
[1723925123517,4.8417746,2621.1,2620.6,2.86193]
[1723925123664,3.6799,2620.9,2620.5,2.86204]
[1723925123865,0.77376552,2620.8,2620.5,2.86204]
[1723925125384,1.309,2620.7,2620.3,2.86221]
[1723925125593,2.3709,2620.6,2620.3,2.86221]
[1723925129112,2.3709,2620.8,2620.3,5.72442]
[1723925129296,4.17062,2620.9,2620.5,2.86204]
[1723925129492,6.54137,2621.1,2620.5,2.86204]
[1723925129808,8.00384734,2621.1,2620.5,2.86204]
[1723925129972,2.86157,2621.0,2620.5,2.86204]
[1723925130304,2.86161,2620.9,2620.5,2.86204]
[1723925130676,5.23262,2620.8,2620.4,2.86215]
[1723925130978,5.25716573,2620.9,2620.5,2.4539]
[1723925131314,4.17062,2620.9,2620.5,2.4539]
[1723925131879,4.17062,2620.9,2620.6,0.04357055]
[1723925133087,4.17062,2620.9,2620.4,2.86215]
[1723925133418,5.45738242,2620.9,2620.4,2.86215]
[1723925133612,5.45738242,2620.9,2620.5,0.04373614]
[1723925134984,1.309,2620.7,2620.5,0.04373614]
[1723925135184,1.309,2620.7,2620.3,2.86221]
[1723925135396,1.309,2620.7,2620.6,0.04373371]
[1723925135595,2.37800024,2620.7,2620.3,2.86221]
[1723925135794,1.309,2620.7,2620.3,2.86221]
[1723925136003,1.309,2620.7,2620.4,0.04373856]
[1723925136409,1.309,2620.7,2620.4,2.90583856]
[1723925136728,4.17062,2620.9,2620.4,5.35973856]
[1723925139090,2.86174,2620.8,2620.4,5.35973856]
[1723925139304,3.47901869,2620.8,2620.4,5.35973856]
[1723925139505,2.86174,2620.8,2620.4,5.35973856]
[1723925145632,4.17062,2620.9,2620.5,2.86204]
[1723925146041,4.17062,2620.9,2620.6,0.0437725]
[1723925146240,0.417062,2620.8,2620.6,0.0437725]
[1723925146405,0.417062,2620.8,2620.4,5.316]
[1723925146607,4.17062,2620.9,2620.7,0.04377007]
[1723925146941,4.17062,2620.9,2620.4,5.316]
[1723925147245,4.17062,2620.9,2620.5,0.04377492]
[1723925149043,2.86173,2620.8,2620.5,0.04377492]
[1723925149253,3.71217374,2620.8,2620.5,0.04377492]
[1723925149424,2.86173,2620.8,2620.5,0.04377492]
[1723925152106,2.86173,2620.8,2620.3,5.33016]
[1723925152306,2.86173,2620.8,2620.4,0.0437753]
[1723925154647,2.86173,2620.8,2620.4,2.9059053]
[1723925154853,4.17061,2620.9,2620.4,2.9059053]
[1723925157465,4.17061,2620.9,2620.5,2.4679]
[1723925157831,4.17061,2620.9,2620.6,0.04378882]
[1723925160157,6.1737662,2620.9,2620.6,0.04378882]
[1723925160357,4.17061,2620.9,2620.6,0.04378882]
[1723925160562,2.86161,2620.9,2620.6,0.04378882]
[1723925160732,2.0031562,2621.1,2620.9,2.2764]
[1723925160917,7.39,2621.2,2620.9,2.2764]
[1723925160918,2.00358875,2621.2,2620.9,2.2764]
[1723925161253,1.92638188,2621.1,2620.9,2.2764]
[1723925161556,1.92638188,2621.1,2621.0,0.04377913]
[1723925161870,6.79136063,2621.1,2621.0,0.04377913]
[1723925162388,4.78777188,2621.1,2621.0,0.04377913]
[1723925162518,6.79136063,2621.1,2620.7,2.2764]
[1723925162718,6.79136063,2621.1,2620.8,0.04378398]
[1723925162719,6.17397875,2621.1,2620.8,0.04378398]
[1723925162928,6.17397875,2621.1,2620.7,2.2764]
[1723925163145,6.17397875,2621.1,2620.8,0.04378398]
[1723925163341,6.17397875,2621.1,2620.7,2.2764]
[1723925163567,6.17397875,2621.1,2620.8,0.04378398]
[1723925164051,6.17397875,2621.1,2620.7,2.2764]
[1723925164365,6.17397875,2621.1,2620.8,0.04378398]
[1723925164767,6.17397875,2621.1,2620.7,2.2764]
[1723925164938,6.17397875,2621.1,2620.9,0.04378155]
[1723925165264,7.55680728,2621.1,2620.7,2.2764]
[1723925165435,7.55680728,2621.1,2621.0,0.04377913]
[1723925165656,7.55680728,2621.1,2620.7,2.2764]
[1723925165863,6.17397875,2621.1,2621.0,0.04377913]
[1723925166083,6.17397875,2621.1,2620.7,2.2764]
[1723925166249,6.17397875,2621.1,2621.0,0.04377913]
[1723925166447,6.17397875,2621.1,2620.7,2.2764]
[1723925166986,6.17397875,2621.1,2620.8,0.04374521]
[1723925167344,6.17397875,2621.1,2620.7,2.2764]
[1723925167550,6.17397875,2621.1,2621.0,2.4263]
[1723925167551,2.00358875,2621.1,2621.0,2.4263]
[1723925167803,2.00358875,2621.3,2621.0,2.47004036]
[1723925167949,3.46949128,2621.3,2621.0,2.47004036]
[1723925168149,3.46949128,2621.3,2621.0,2.4263]
[1723925168598,2.00358875,2621.3,2621.0,5.28779]
[1723925168950,2.00358875,2621.3,2621.1,0.04373794]
[1723925169146,2.00358875,2621.3,2621.0,2.4263]
[1723925169147,3.31258875,2621.3,2621.0,2.4263]
[1723925169436,7.48445827,2621.3,2621.1,0.04373794]
[1723925169709,7.48501787,2621.3,2621.1,0.04373794]
[1723925169996,7.48501787,2621.3,2621.0,2.4263]
[1723925170146,5.48086952,2621.3,2621.0,2.4263]
[1723925170709,7.48501787,2621.3,2621.0,2.4263]
[1723925171187,5.48086952,2621.3,2621.0,2.4263]
[1723925171701,7.48501787,2621.3,2621.0,2.4263]
[1723925172185,6.17432835,2621.3,2621.0,2.4263]
[1723925172492,1.309,2621.3,2621.0,2.4263]
[1723925175195,2.00323087,2621.4,2621.1,2.86134]
[1723925175487,8.699,2621.5,2621.1,2.86134]
[1723925175488,10.70223087,2621.5,2621.1,2.4263]
[1723925175651,10.70223087,2621.5,2621.3,2.4263]
[1723925175853,8.699,2621.5,2621.3,2.4263]
[1723925176170,2.66531409,2621.5,2621.3,2.4263]
[1723925176487,1.309,2621.5,2621.3,2.4263]
[1723925178794,4.86414087,2621.6,2621.3,2.4263]
[1723925178795,2.86091,2621.6,2621.3,2.4263]
[1723925179006,4.86278516,2621.6,2621.3,2.4263]
[1723925179404,2.86091,2621.6,2621.3,2.4263]
[1723925180512,3.76414752,2621.6,2621.3,2.4263]
[1723925181510,4.17001,2621.5,2621.0,2.3136]
[1723925181823,1.309,2621.3,2621.1,0.04354823]
[1723925182422,1.309,2621.5,2621.1,2.86139]
[1723925182575,1.309,2621.5,2621.2,0.04354784]
[1723925182779,1.309,2621.5,2621.1,2.86139]
[1723925183413,1.309,2621.5,2621.0,5.17509]
[1723925183920,1.309,2621.5,2621.0,5.17504]
[1723925184079,1.309,2621.5,2621.1,2.3369]
[1723925184402,1.309,2621.5,2621.1,5.19822]
[1723925184809,1.309,2621.5,2621.2,0.04355396]
[1723925185042,1.309,2621.5,2621.1,5.19822]
[1723925185338,1.309,2621.5,2621.3,0.04355154]
[1723925185520,1.309,2621.5,2621.2,0.04355396]
[1723925185685,1.309,2621.5,2621.1,5.19822]
[1723925185886,1.309,2621.5,2621.3,0.04355154]
[1723925186179,5.16348203,2621.5,2621.1,5.19822]
[1723925186380,4.16995,2621.5,2621.1,5.19822]
[1723925186613,4.16995,2621.5,2621.2,0.043556]
[1723925193991,2.86107,2621.4,2621.2,0.043556]
[1723925194215,4.17017,2621.3,2621.2,0.043556]
[1723925194420,5.530409,2621.3,2621.2,0.043556]
[1723925194619,5.530409,2621.3,2620.8,2.3369]
[1723925194836,4.17017,2621.3,2621.2,0.04356211]
[1723925195000,4.17017,2621.3,2620.8,5.19861]
[1723925195203,4.17017,2621.3,2621.2,0.04356211]
[1723925195427,4.17017,2621.3,2620.8,5.19861]
[1723925195629,4.17017,2621.3,2621.2,0.04356211]
[1723925195861,5.31353224,2621.3,2620.8,5.19861]
[1723925196013,4.17017,2621.3,2621.2,0.04356211]
[1723925196216,4.17017,2621.3,2620.8,5.19861]
[1723925196448,4.17017,2621.3,2621.2,0.04356211]
[1723925196953,4.17017,2621.3,2620.8,5.19861]
[1723925197258,4.17017,2621.3,2620.9,0.04356938]
[1723925198547,4.17017,2621.3,2620.8,5.19861]
[1723925198747,4.17017,2621.3,2620.9,0.04356938]
[1723925198955,4.17017,2621.3,2620.8,5.19861]
[1723925199154,4.17017,2621.3,2620.9,0.04356938]
[1723925199453,4.17017,2621.3,2620.8,5.19861]
[1723925199659,1.309,2621.3,2620.9,2.8616]
[1723925199847,4.17018,2621.3,2620.9,2.90516938]
[1723925200047,4.86286422,2621.4,2621.0,2.86149]
[1723925200259,4.17007,2621.4,2620.9,2.90516938]
[1723925200464,4.17007,2621.4,2621.1,0.04356453]
[1723925200664,4.17007,2621.4,2621.0,0.04359349]
[1723925200967,6.17186422,2621.4,2621.1,0.04359106]
[1723925201160,6.17186422,2621.4,2620.9,5.7231]
[1723925201353,6.17186422,2621.4,2621.0,0.04359349]
[1723925202027,6.17297347,2621.4,2621.0,0.04359349]
[1723925203933,4.17007,2621.4,2620.9,5.7231]
[1723925204258,6.17297347,2621.4,2621.0,0.04359349]
[1723925206444,4.17007,2621.4,2621.0,0.04359349]
[1723925206643,6.17390102,2621.4,2621.0,2.90506349]
[1723925206962,1.309,2621.4,2621.1,2.3356]
[1723925207158,1.309,2621.4,2621.2,0.04358864]
[1723925207468,4.86479102,2621.5,2621.2,0.04358864]
[1723925208542,2.00383102,2621.5,2621.2,0.04358864]
[1723925208949,4.86478102,2621.5,2621.2,0.04358864]
[1723925209438,2.00383102,2621.5,2621.2,0.04358864]
[1723925209637,2.00383102,2621.5,2621.2,2.90486864]
[1723925209948,9.39383102,2621.6,2621.3,2.86116]
[1723925210155,9.39383102,2621.6,2621.4,2.3477]
[1723925210469,9.39383102,2621.6,2621.3,2.86112]
[1723925210470,1.309,2621.5,2621.3,2.86115]
[1723925210673,9.39383102,2621.6,2621.3,2.86111]
[1723925210841,7.39,2621.6,2621.4,5.20876]
[1723925211175,7.39,2621.6,2621.5,0.04355281]
[1723925211395,2.00393222,2621.7,2621.5,0.04355281]
[1723925211754,2.00393222,2621.7,2621.4,5.20876]
[1723925212442,21.95393222,2621.8,2621.5,2.86095]
[1723925212638,19.95,2621.8,2621.7,2.3477]
[1723925213168,19.95,2621.8,2621.7,2.39120717]
[1723925213548,19.95,2621.8,2621.7,0.04350717]
[1723925214683,19.95,2621.9,2621.7,0.04350717]
[1723925215176,19.95,2621.9,2621.6,5.20852]
[1723925215347,19.95,2621.9,2621.7,0.04349494]
[1723925215548,19.95,2621.9,2621.6,5.20852]
[1723925215747,19.95,2621.9,2621.7,0.04349494]
[1723925215966,19.95,2621.9,2621.6,5.20852]
[1723925220844,1.309,2621.8,2621.6,2.3477]
[1723925221005,3.9211253,2621.8,2621.5,2.86094]
[1723925221204,1.309,2621.8,2621.6,0.04338114]
[1723925223490,1.309,2621.8,2621.5,2.86094]
[1723925223903,1.309,2621.8,2621.6,0.04338114]
[1723925224310,1.309,2621.8,2621.5,2.86094]
[1723925224604,1.309,2621.8,2621.6,0.04338114]
[1723925224804,1.309,2621.8,2621.5,2.86094]
[1723925225005,1.309,2621.8,2621.6,0.04338114]
[1723925225317,1.309,2621.8,2621.5,2.86094]
[1723925225805,1.309,2621.8,2621.6,0.04338114]
[1723925225970,1.309,2621.8,2621.5,2.86094]
[1723925226171,1.309,2621.8,2621.6,0.04338114]
[1723925226480,1.309,2621.8,2621.5,2.86094]
[1723925226801,1.309,2621.8,2621.6,0.04338114]
[1723925226956,1.309,2621.8,2621.5,2.86094]
[1723925227157,1.309,2621.8,2621.6,0.04338114]
[1723925227409,1.309,2621.8,2621.5,2.86094]
[1723925227717,1.309,2621.8,2621.4,5.1266]
[1723925227879,1.309,2621.6,2621.2,5.16847]
[1723925229060,2.86073,2621.8,2621.0,2.3072]
[1723925229061,2.86118,2621.3,2621.0,2.3072]
[1723925229260,4.17033,2621.2,2620.7,8.03073]
[1723925229486,7.734827,2621.2,2620.7,5.16896]
[1723925229733,7.734827,2621.2,2620.7,2.3072]
[1723925229734,1.309,2621.0,2620.7,2.3072]
[1723925229989,1.309,2621.0,2620.5,5.7239]
[1723925229990,4.17056,2621.0,2620.5,5.16914]
[1723925230621,4.17056,2621.0,2620.5,8.03111]
[1723925230777,4.17056,2621.0,2620.5,5.16914]
[1723925231499,2.86166,2620.9,2620.5,2.3072]
[1723925231659,4.95162663,2621.0,2620.5,2.3072]
[1723925231660,4.95162663,2621.0,2620.5,5.16923]
[1723925231864,4.17056,2621.0,2620.5,5.16923]
[1723925236175,4.17056,2621.0,2620.6,2.86187]
[1723925236176,1.309,2621.0,2620.6,2.86187]
[1723925236365,6.43944,2621.2,2620.6,2.86187]
[1723925236566,1.309,2621.0,2620.5,5.16924]
[1723925236766,2.86161,2620.9,2620.5,5.16924]
[1723925237164,4.1705,2621.0,2620.5,5.16924]
[1723925238484,5.27442404,2621.0,2620.5,5.16924]
[1723925239066,5.27442404,2621.0,2620.5,8.03123]
[1723925239268,4.1705,2621.0,2620.5,8.03123]
[1723925240317,4.1705,2621.0,2620.5,5.16919]
[1723925240691,4.1705,2621.0,2620.5,8.03118]
[1723925240890,4.1705,2621.0,2620.5,5.16919]
[1723925241382,4.1705,2621.0,2620.6,0.04373372]
[1723925241705,5.27442504,2621.0,2620.6,0.04373372]
[1723925243672,1.309,2620.8,2620.6,0.04373372]
[1723925243879,6.52797,2620.8,2620.6,0.04373372]
[1723925244095,2.86183,2620.7,2620.6,0.04373372]
[1723925244297,2.86183,2620.7,2620.2,5.16741]
[1723925244607,1.309,2620.5,2620.2,2.3051]
[1723925245810,2.86183,2620.7,2620.2,5.16741]
[1723925246034,2.86183,2620.7,2620.1,2.86239]
[1723925246035,11.56057,2621.0,2620.5,2.3051]
[1723925246213,2.86166,2620.9,2620.5,2.3051]
[1723925246514,3.96071222,2620.9,2620.5,2.3051]
[1723925247126,7.39,2621.0,2620.5,5.16714]
[1723925247441,7.39,2621.0,2620.8,2.3051]
[1723925247734,22.81136,2621.2,2620.8,2.3051]
[1723925251021,25.67272,2621.2,2620.8,2.3051]
[1723925251305,22.81136,2621.2,2620.8,2.3051]
[1723925251475,22.81135,2621.2,2620.8,2.3051]
[1723925253728,2.86139,2621.1,2620.8,2.3051]
[1723925254027,4.17039,2621.1,2620.8,2.3051]
[1723925254729,6.868564,2621.1,2620.8,2.3051]
[1723925255727,2.8615,2621.0,2620.6,2.3051]
[1723925256075,4.17061,2620.9,2620.6,2.3051]
[1723925256532,4.17061,2620.9,2620.7,0.04380271]
[1723925257137,4.17061,2620.9,2620.6,2.3051]
[1723925257338,4.17061,2620.9,2620.4,5.16725]
[1723925257554,4.17061,2620.9,2620.7,0.04380271]
[1723925257719,5.16557424,2620.9,2620.4,5.16725]
[1723925258061,5.16557424,2620.9,2620.8,0.04380028]
[1723925258201,8.02724424,2620.9,2620.4,5.16725]
[1723925258603,5.16557424,2620.9,2620.5,0.04380755]
[1723925259935,5.16557424,2620.9,2620.5,2.90583755]
[1723925260148,4.17061,2620.9,2620.5,2.90583755]
[1723925260334,2.86147,2621.1,2620.6,2.4373]
[1723925260335,1.309,2621.1,2620.6,2.4373]
[1723925260548,4.17049,2621.1,2620.6,5.29918]
[1723925261015,4.17049,2621.1,2620.7,0.04380271]
[1723925261515,6.868657,2621.1,2620.7,0.04380271]
[1723925261716,2.8615,2621.0,2620.7,0.04380271]
[1723925263205,4.007167,2621.1,2620.7,0.04380271]
[1723925263463,6.868567,2621.1,2620.6,5.29918]
[1723925264348,5.8294877,2621.0,2620.6,5.29918]
[1723925264864,2.8615,2621.0,2620.6,5.29918]
[1723925268028,1.309,2621.1,2620.6,5.29918]
[1723925268655,1.309,2621.1,2620.7,5.13542]
[1723925269155,1.309,2621.1,2620.7,5.17922271]
[1723925270455,1.309,2621.1,2620.7,2.31740271]
[1723925271236,1.309,2621.1,2620.7,5.17919271]
[1723925271847,19.95,2621.2,2621.0,2.86149]
[1723925272160,19.95,2621.2,2621.1,2.2736]
[1723925276659,4.86382745,2621.5,2621.1,2.2736]
[1723925276848,3.31187745,2621.6,2621.2,2.86127]
[1723925277166,3.31187745,2621.6,2621.3,0.04370045]
[1723925277552,3.31187745,2621.6,2621.2,2.86127]
[1723925277728,3.31187745,2621.6,2621.4,0.04369802]
[1723925277935,3.72686367,2621.6,2621.4,0.04369802]
[1723925278154,3.72686367,2621.6,2621.2,2.86127]
[1723925278155,1.72398622,2621.6,2621.2,2.86127]
[1723925278344,1.309,2621.6,2621.5,0.0436956]
[1723925278543,1.309,2621.6,2621.2,2.86127]
[1723925278544,3.31186292,2621.6,2621.2,2.86127]
[1723925278841,1.309,2621.6,2621.5,0.0436956]
[1723925279156,1.309,2621.6,2621.2,2.86127]